bitfinex/quotes_BTCUSD_20241226
["timestamp","ask_amount","ask_price","bid_price","bid_amount"]
[1735224788627,0.55329042,95529.0,95528.0,0.01471611]
[1735224788823,0.55229042,95529.0,95528.0,0.01471611]
[1735224789049,0.66229042,95529.0,95528.0,0.01571611]
[1735224789442,0.56229042,95529.0,95528.0,0.01571611]
[1735224789647,0.66229042,95529.0,95528.0,0.01571611]
[1735224789819,0.5845822,95529.0,95528.0,0.01571611]
[1735224790741,0.5835822,95529.0,95528.0,0.01571611]
[1735224791050,0.263,95529.0,95528.0,0.01571611]
[1735224791250,0.004,95529.0,95528.0,0.01471611]
[1735224791456,0.1,95548.0,95528.0,0.01471611]
[1735224791661,0.009,95529.0,95528.0,0.11970243]
[1735224791864,0.18590027,95550.0,95528.0,0.11970243]
[1735224791865,0.1,95550.0,95528.0,0.11870243]
[1735224792069,0.1,95550.0,95529.0,0.10398632]
[1735224792479,0.52334,95550.0,95529.0,0.10398632]
[1735224792888,0.005,95543.0,95529.0,0.10398632]
[1735224793060,0.03123588,95549.0,95529.0,0.10398632]
[1735224793267,0.03123588,95542.0,95528.0,0.03555736]
[1735224793832,0.1,95545.0,95528.0,0.03555736]
[1735224794559,0.1,95545.0,95529.0,0.001]
[1735224794560,0.1,95530.0,95529.0,0.001]
[1735224794743,2.37958332,95530.0,95528.0,0.01471611]
[1735224794949,1.86676032,95529.0,95528.0,0.01471611]
[1735224795086,1.80091788,95529.0,95528.0,0.01471611]
[1735224795280,1.56244888,95529.0,95528.0,0.01471611]
[1735224795487,1.46590488,95529.0,95528.0,0.01471611]
[1735224795683,0.98777888,95529.0,95528.0,0.01471611]
[1735224795893,1.48476888,95529.0,95528.0,0.01471611]
[1735224796302,1.48776888,95529.0,95528.0,0.01471611]
[1735224796831,1.44464388,95529.0,95528.0,0.01471611]
[1735224797004,1.40954688,95529.0,95528.0,0.01471611]
[1735224798267,1.40754688,95529.0,95528.0,0.01471611]
[1735224798471,1.40954688,95529.0,95528.0,0.01471611]
[1735224798675,1.47655588,95529.0,95528.0,0.01471611]
[1735224798878,1.076412,95529.0,95528.0,0.01471611]
[1735224799115,0.67934,95529.0,95528.0,0.01571611]
[1735224799293,0.82750084,95529.0,95528.0,0.01471611]
[1735224799497,0.93348716,95529.0,95528.0,0.01471611]
[1735224799643,1.03886084,95529.0,95528.0,0.01471611]
[1735224799848,1.03726084,95529.0,95528.0,0.01471611]
[1735224800269,1.03826084,95529.0,95528.0,0.01471611]
[1735224800608,1.03743204,95529.0,95528.0,0.01471611]
[1735224801210,1.02943204,95529.0,95528.0,0.01471611]
[1735224801384,1.03043204,95529.0,95528.0,0.01471611]
[1735224801839,0.9954292,95529.0,95528.0,0.01471611]
[1735224802099,0.91787404,95529.0,95528.0,0.01471611]
[1735224802447,0.91687404,95529.0,95528.0,0.01471611]
[1735224802685,0.91787404,95529.0,95528.0,0.01471611]
[1735224802895,0.91687404,95529.0,95528.0,0.01471611]
[1735224803857,0.8828712,95529.0,95528.0,0.01471611]
[1735224804270,0.91787404,95529.0,95528.0,0.01471611]
[1735224804739,0.8828712,95529.0,95528.0,0.01471611]
[1735224804938,0.91787404,95529.0,95528.0,0.01471611]
[1735224805109,0.91687404,95529.0,95528.0,0.01471611]
[1735224805512,0.91787404,95529.0,95528.0,0.01471611]
[1735224805710,1.02232304,95529.0,95528.0,0.01471611]
[1735224806006,1.02232304,95529.0,95528.0,1.1e-07]
[1735224806218,0.15,95520.0,95518.0,0.02086858]
[1735224806423,0.359382,95519.0,95518.0,0.02086858]
[1735224808884,0.49339983,95512.0,95511.0,5.8e-07]
[1735224809086,0.25,95488.0,95485.0,0.05202371]
[1735224809293,0.459454,95486.0,95485.0,0.05202371]
[1735224809608,0.459454,95486.0,95477.0,8.56e-05]
[1735224809609,0.2,95478.0,95477.0,8.56e-05]
[1735224809807,0.51602259,95478.0,95477.0,8.56e-05]
[1735224810207,0.51602259,95478.0,95471.0,0.09443847]
[1735224810208,0.15,95477.0,95471.0,0.09443847]
[1735224810418,2.9813887,95477.0,95471.0,0.03159147]
[1735224810616,0.15,95475.0,95469.0,0.07790913]
[1735224810855,0.1,95470.0,95469.0,0.07790913]
[1735224811106,1.20820756,95470.0,95469.0,0.07790913]
[1735224811305,1.73503932,95470.0,95469.0,0.07790913]
[1735224811468,1.73503932,95470.0,95448.0,0.90068046]
[1735224811469,0.15,95469.0,95456.0,0.0011]
[1735224811644,0.359509,95461.0,95456.0,0.0011]
[1735224812031,0.39349756,95461.0,95456.0,0.0011]
[1735224812415,0.359509,95461.0,95456.0,0.0011]
[1735224813628,0.37593298,95461.0,95460.0,0.10407202]
[1735224813832,0.37593298,95461.0,95460.0,0.0010857]
[1735224814489,0.37593298,95461.0,95450.0,0.0232714]
[1735224814490,0.359509,95461.0,95450.0,0.0232714]
[1735224814689,0.359531,95451.0,95450.0,0.0232714]
[1735224815919,0.4174368,95451.0,95450.0,0.0262714]
[1735224816153,0.360531,95451.0,95450.0,0.0262714]
[1735224816940,0.360531,95451.0,95450.0,0.0292714]
[1735224817376,0.360531,95451.0,95450.0,0.0232714]
[1735224817577,0.359531,95451.0,95450.0,0.0232714]
[1735224818216,0.359531,95451.0,95450.0,0.13425772]
[1735224818418,0.359531,95451.0,95450.0,0.13025772]
[1735224818823,0.209514,95459.0,95451.0,0.1]
[1735224819092,0.00015424,95477.0,95452.0,0.20398632]
[1735224819093,0.209513,95460.0,95452.0,0.20398632]
[1735224819311,0.209514,95459.0,95453.0,0.1]
[1735224819503,0.209514,95459.0,95454.0,0.10398632]
[1735224820123,0.209518,95457.0,95454.0,0.10398632]
[1735224820295,0.15,95456.0,95454.0,0.10398632]
[1735224820677,0.15,95456.0,95454.0,0.10698632]
[1735224821084,0.359522,95455.0,95454.0,0.10398632]
[1735224821516,0.359522,95455.0,95454.0,0.10698632]
[1735224821921,0.359522,95455.0,95454.0,0.11198632]
[1735224822115,0.359522,95455.0,95454.0,0.10698632]
[1735224822555,0.360522,95455.0,95454.0,0.11298632]
[1735224822786,0.360522,95455.0,95454.0,0.10998632]
[1735224823182,0.360522,95455.0,95454.0,0.11298632]
[1735224823381,0.360522,95455.0,95454.0,0.009]
[1735224823616,0.360522,95455.0,95454.0,0.003]
[1735224823804,0.209527,95453.0,95450.0,0.0232714]
[1735224824009,0.209531,95451.0,95450.0,0.0232714]
[1735224824615,0.359531,95451.0,95450.0,0.0232714]
[1735224825033,0.46351732,95451.0,95450.0,0.0023174]
[1735224825190,0.46351732,95451.0,95448.0,4e-07]
[1735224825191,0.359535,95449.0,95448.0,4e-07]
[1735224825393,0.39352356,95449.0,95448.0,4e-07]
[1735224825997,0.20497856,95449.0,95448.0,4e-07]
[1735224826377,0.02099,95445.0,95439.0,6.5e-07]
[1735224826748,0.02099,95445.0,95403.0,0.021966]
[1735224826749,0.1,95417.0,95398.0,0.00195822]
[1735224826930,0.880993,95416.0,95415.0,6e-07]
[1735224827133,0.39359656,95416.0,95415.0,6e-07]
[1735224827333,0.359608,95416.0,95415.0,6e-07]
[1735224827872,0.35976207,95416.0,95415.0,6e-07]
[1735224828021,0.35976207,95416.0,95415.0,0.0010006]
[1735224828223,0.35976207,95416.0,95415.0,6e-07]
[1735224828432,0.37619471,95416.0,95415.0,6e-07]
[1735224828647,0.38019471,95416.0,95415.0,6e-07]
[1735224829048,0.36376207,95416.0,95415.0,6e-07]
[1735224829305,0.36676207,95416.0,95415.0,6e-07]
[1735224829776,0.36376207,95416.0,95415.0,6e-07]
[1735224830120,0.44505808,95416.0,95415.0,6e-07]
[1735224830317,0.39675063,95416.0,95415.0,6e-07]
[1735224830518,0.35976207,95416.0,95415.0,6e-07]
[1735224830731,0.35976207,95416.0,95415.0,0.0010006]
[1735224831396,0.57486207,95416.0,95415.0,0.0010006]
[1735224831599,0.35976207,95416.0,95415.0,0.0010006]
[1735224832000,1.30777663,95416.0,95415.0,6e-07]
[1735224832202,0.39375063,95416.0,95415.0,6e-07]
[1735224832579,0.39375063,95416.0,95415.0,0.0020006]
[1735224832778,0.47705807,95416.0,95415.0,0.0020006]
[1735224832980,0.51104663,95416.0,95415.0,6e-07]
[1735224833187,0.39375063,95416.0,95415.0,6e-07]
[1735224833423,0.41474063,95416.0,95415.0,6e-07]
[1735224833720,0.35976207,95416.0,95415.0,6e-07]
[1735224833919,0.38075207,95416.0,95415.0,0.0020006]
[1735224834175,0.48075207,95416.0,95415.0,0.0020006]
[1735224834346,0.51474063,95416.0,95415.0,0.0020006]
[1735224834496,0.49375063,95416.0,95415.0,0.0030006]
[1735224834713,0.48875207,95416.0,95415.0,0.0030006]
[1735224834916,0.74508763,95416.0,95415.0,0.0020006]
[1735224835116,0.75308763,95416.0,95415.0,0.0010006]
[1735224835395,0.75308763,95416.0,95415.0,6e-07]
[1735224835396,0.92308539,95416.0,95415.0,6e-07]
[1735224835598,0.359641,95401.0,95400.0,0.00539]
[1735224835805,0.733163,95401.0,95400.0,0.00539]
[1735224835974,0.476063,95401.0,95400.0,0.00539]
[1735224836352,1.385942,95401.0,95400.0,0.00539]
[1735224836606,1.15164604,95401.0,95400.0,0.00539]
[1735224836848,1.07933804,95401.0,95400.0,0.00539]
[1735224837115,0.39706604,95401.0,95400.0,0.00739]
[1735224837374,0.62008104,95401.0,95400.0,0.00739]
[1735224837659,0.39706604,95401.0,95400.0,0.00739]
[1735224837922,0.39706604,95401.0,95375.0,0.07964831]
[1735224837923,0.15,95383.0,95375.0,0.07964831]
[1735224838157,0.15,95381.0,95376.0,0.10398632]
[1735224838414,0.15,95379.0,95376.0,0.10398632]
[1735224838676,0.15,95377.0,95376.0,0.10398632]
[1735224839211,0.15015398,95377.0,95376.0,0.12488857]
[1735224839485,0.15015398,95377.0,95376.0,0.12988857]
[1735224839729,0.00015398,95377.0,95376.0,0.12988857]
[1735224839988,0.00015398,95377.0,95376.0,0.12488857]
[1735224840266,0.00015398,95377.0,95376.0,0.11725167]
[1735224840518,0.00015398,95377.0,95376.0,0.12225167]
[1735224840763,0.02114398,95377.0,95376.0,0.12825167]
[1735224841000,0.02114398,95377.0,95376.0,0.12225167]
[1735224841267,0.00115398,95377.0,95376.0,0.12825167]
[1735224841453,0.00115398,95377.0,95376.0,0.11725167]
[1735224841683,0.00190709,95377.0,95376.0,0.12225167]
[1735224841916,0.00190709,95377.0,95376.0,0.12725167]
[1735224842189,0.209694,95377.0,95376.0,0.02590225]
[1735224842408,0.209694,95377.0,95376.0,0.10398632]
[1735224842409,0.39712137,95377.0,95376.0,0.10398632]
[1735224842702,0.18742737,95377.0,95376.0,0.18338632]
[1735224842949,0.18742737,95377.0,95376.0,0.18638632]
[1735224843173,0.16643737,95377.0,95376.0,0.18638632]
[1735224843457,0.02099,95390.0,95376.0,0.2952871]
[1735224843680,0.02099,95390.0,95386.0,0.03083611]
[1735224843941,0.0001714,95416.0,95387.0,0.10398632]
[1735224843942,0.209637,95403.0,95387.0,0.10398632]
[1735224844196,0.06916389,95415.0,95387.0,0.10503449]
[1735224844431,0.02099,95410.0,95388.0,0.01463521]
[1735224844646,0.02099,95398.0,95389.0,0.10398632]
[1735224844845,0.230639,95398.0,95389.0,0.10398632]
[1735224845001,0.02099,95396.0,95389.0,0.10398632]
[1735224846056,0.209637,95403.0,95390.0,0.00104818]
[1735224846057,0.15,95397.0,95390.0,0.00104818]
[1735224846190,0.209632,95406.0,95391.0,0.10398632]
[1735224846394,0.209632,95406.0,95393.0,0.03083611]
[1735224846621,0.001,95410.0,95402.0,0.03083611]
[1735224846815,0.001,95410.0,95403.0,0.10398632]
[1735224847028,0.02099,95408.0,95403.0,0.10398632]
[1735224847243,0.230618,95407.0,95403.0,0.10398632]
[1735224847446,0.02099,95404.0,95395.0,0.02136113]
[1735224847682,0.06916389,95413.0,95396.0,0.10398632]
[1735224847683,0.02099,95402.0,95396.0,0.10398632]
[1735224848119,0.15,95397.0,95396.0,0.08300632]
[1735224848721,0.15,95397.0,95395.0,0.02336113]
[1735224848722,0.359652,95396.0,95395.0,0.02336113]
[1735224849187,0.380642,95396.0,95395.0,0.12534745]
[1735224850150,0.359652,95396.0,95395.0,0.12534745]
[1735224850353,0.36221796,95396.0,95395.0,0.12934745]
[1735224850914,0.36221796,95396.0,95395.0,0.12834745]
[1735224851283,0.17099,95397.0,95395.0,0.13334745]
[1735224851553,0.02099,95397.0,95396.0,0.10398632]
[1735224851731,0.02099,95397.0,95396.0,0.23292243]
[1735224852328,0.02099,95414.0,95405.0,0.03083611]
[1735224852533,0.02099,95414.0,95407.0,0.03083611]
[1735224852694,0.02099,95414.0,95408.0,0.14830467]
[1735224852897,0.02099,95414.0,95408.0,0.14935265]
[1735224853285,0.02099,95414.0,95408.0,0.14830467]
[1735224853525,0.02099,95414.0,95410.0,0.03083611]
[1735224853729,0.02114564,95414.0,95413.0,0.13482243]
[1735224854345,0.02114564,95414.0,95413.0,0.10398632]
[1735224854764,0.02114564,95414.0,95413.0,0.13482243]
[1735224854895,0.01922329,95415.0,95414.0,0.03083611]
[1735224855093,0.01922329,95415.0,95414.0,0.1756017]
[1735224855322,0.209524,95455.0,95435.0,0.03083611]
[1735224855528,0.06916389,95464.0,95436.0,0.10503393]
[1735224855872,0.209547,95444.0,95436.0,0.10398632]
[1735224856274,0.209537,95449.0,95436.0,0.10398632]
[1735224856448,0.209537,95449.0,95437.0,0.01348224]
[1735224856658,0.06916389,95464.0,95438.0,0.10398632]
[1735224856659,0.209527,95453.0,95438.0,0.10398632]
[1735224856901,0.06916389,95441.0,95414.0,0.03973142]
[1735224857103,0.15,95416.0,95415.0,0.29188893]
[1735224857348,0.209558,95439.0,95424.0,0.03083611]
[1735224857551,0.285429,95452.0,95415.0,0.29188893]
[1735224857552,0.15,95438.0,95436.0,0.006]
[1735224857720,0.15,95438.0,95437.0,0.10398632]
[1735224858544,0.06916389,95448.0,95437.0,0.10398632]
[1735224858545,0.209557,95439.0,95437.0,0.10398632]
[1735224858738,0.15,95438.0,95437.0,0.10398632]
[1735224858958,0.209546,95445.0,95437.0,0.11438495]
[1735224859188,0.02099,95444.0,95437.0,0.10398632]
[1735224859306,0.0001714,95469.0,95441.0,0.03083611]
[1735224859503,0.209512,95460.0,95443.0,0.02084671]
[1735224859746,0.209512,95460.0,95447.0,0.13482243]
[1735224859949,0.209512,95460.0,95448.0,0.01567167]
[1735224860154,0.209512,95460.0,95449.0,0.10398632]
[1735224860366,0.209502,95465.0,95449.0,0.10398632]
[1735224860530,0.2096644,95469.0,95450.0,0.13586991]
[1735224860728,0.209506,95463.0,95450.0,0.13586991]
[1735224860987,0.209506,95463.0,95451.0,0.01358699]
[1735224861158,0.209506,95463.0,95459.0,0.02063896]
[1735224861362,0.209394,95468.0,95460.0,0.10398632]
[1735224861565,0.00032707,95469.0,95461.0,0.00104743]
[1735224861835,0.00032707,95469.0,95462.0,0.10398632]
[1735224862040,0.00032707,95469.0,95467.0,0.10398632]
[1735224862253,0.00032707,95469.0,95468.0,0.30566966]
[1735224862463,0.00032707,95469.0,95468.0,0.38212243]
[1735224863631,0.00032707,95469.0,95468.0,0.29012243]
[1735224863803,0.00032707,95469.0,95468.0,0.25928632]
[1735224864016,0.00032707,95469.0,95468.0,0.36497115]
[1735224864222,0.00032707,95469.0,95468.0,0.33413504]
[1735224864402,0.00032707,95469.0,95468.0,0.37397115]
[1735224864596,0.00032707,95469.0,95468.0,0.32013504]
[1735224864797,0.00032707,95469.0,95468.0,0.18148632]
[1735224864985,0.00032707,95469.0,95460.0,0.09366825]
[1735224864986,0.209509,95461.0,95460.0,0.09366825]
[1735224865189,0.209531,95451.0,95450.0,0.09366825]
[1735224865408,0.209531,95451.0,95450.0,0.19765457]
[1735224865612,0.209518,95457.0,95450.0,0.19765457]
[1735224865826,0.209514,95459.0,95451.0,0.10398632]
[1735224865827,0.15,95454.0,95451.0,0.10398632]
[1735224866030,0.15,95454.0,95451.0,0.1399304]
[1735224866351,0.15,95454.0,95451.0,0.10398632]
[1735224867156,0.209494,95468.0,95451.0,0.11298632]
[1735224867356,0.15,95467.0,95452.0,0.00104744]
[1735224867582,0.15,95467.0,95453.0,0.10503377]
[1735224868118,0.15,95465.0,95453.0,0.10503377]
[1735224868318,0.15,95463.0,95453.0,0.10398632]
[1735224868517,0.15,95465.0,95453.0,0.10398632]
[1735224868716,0.15,95459.0,95453.0,0.10398632]
[1735224869334,0.15,95459.0,95453.0,0.11098632]
[1735224869556,0.15,95459.0,95453.0,0.10398632]
[1735224869752,0.15,95467.0,95453.0,0.10398632]
[1735224869956,0.00032707,95469.0,95457.0,0.10398632]
[1735224870158,0.15,95467.0,95457.0,0.10398632]
[1735224870364,0.21916389,95467.0,95457.0,0.10398632]
[1735224870534,0.06916389,95454.0,95453.0,0.005]
[1735224870738,1.00652389,95454.0,95453.0,0.009]
[1735224871115,0.96912389,95454.0,95453.0,0.009]
[1735224871375,0.96912389,95454.0,95453.0,0.005]
[1735224871603,0.15,95454.0,95453.0,0.005]
[1735224872385,0.15,95452.0,95429.0,0.03083611]
[1735224872586,0.15,95452.0,95430.0,0.00104763]
[1735224872939,0.0001714,95459.0,95441.0,0.0775]
[1735224873140,0.0001714,95459.0,95442.0,0.03188361]
[1735224873309,0.0001714,95459.0,95445.0,0.00985611]
[1735224873527,0.0001714,95459.0,95447.0,0.0468]
[1735224873671,0.0001714,95459.0,95451.0,0.10398632]
[1735224873875,0.0001714,95459.0,95452.0,0.01721644]
[1735224874063,0.0001714,95459.0,95453.0,0.10398632]
[1735224874304,0.0001714,95459.0,95441.0,0.0775]
[1735224874305,0.0001714,95459.0,95454.0,0.10398632]
[1735224875962,0.0001714,95459.0,95457.0,0.10398632]
[1735224876151,0.0001714,95459.0,95458.0,0.13599953]
[1735224876367,0.0001714,95459.0,95458.0,0.22799948]
[1735224876571,0.0001714,95459.0,95458.0,0.20259606]
[1735224876877,0.0001714,95459.0,95458.0,0.12509606]
[1735224877109,0.03415996,95459.0,95458.0,0.12509606]
[1735224877315,0.03415996,95459.0,95457.0,0.009]
[1735224877316,0.359516,95458.0,95457.0,0.009]
[1735224877519,0.54726512,95458.0,95457.0,0.009]
[1735224877661,0.88647468,95458.0,95457.0,0.009]
[1735224877877,0.64913597,95458.0,95457.0,0.009]
[1735224878276,0.57980289,95458.0,95457.0,0.011]
[1735224878509,0.57980289,95458.0,95457.0,0.002]
[1735224878708,0.44965989,95458.0,95457.0,0.002]
[1735224878929,0.635518,95458.0,95457.0,0.002]
[1735224879136,0.359516,95458.0,95457.0,0.10598632]
[1735224879680,0.359516,95458.0,95457.0,0.10398632]
[1735224880385,0.359516,95458.0,95457.0,0.10598632]
[1735224880768,0.359516,95458.0,95457.0,0.10798632]
[1735224881371,0.359516,95458.0,95457.0,0.10598632]
[1735224881581,0.359516,95458.0,95457.0,0.004]
[1735224881582,0.44965989,95458.0,95457.0,0.004]
[1735224881784,0.62027412,95458.0,95457.0,0.002]
[1735224882043,0.58832845,95458.0,95457.0,0.002]
[1735224882255,0.55433989,95458.0,95457.0,0.002]
[1735224882458,0.209597,95421.0,95418.0,0.0761]
[1735224882660,0.209587,95426.0,95419.0,0.10398632]
[1735224882833,0.15,95425.0,95419.0,0.10398632]
[1735224883040,0.419181,95424.0,95420.0,0.02055031]
[1735224883199,0.419181,95424.0,95415.0,8.57e-05]
[1735224883200,0.419181,95424.0,95421.0,0.10398632]
[1735224883839,0.20959,95424.0,95421.0,0.10450382]
[1735224884043,0.09014389,95449.0,95423.0,0.10398632]
[1735224884244,0.09014389,95454.0,95430.0,0.10398632]
[1735224884418,0.15,95455.0,95439.0,0.10398632]
[1735224884722,0.15,95449.0,95440.0,0.00104758]
[1735224884920,0.359551,95442.0,95441.0,0.10407182]
[1735224885260,0.15,95442.0,95441.0,0.10407182]
[1735224885486,0.15,95442.0,95441.0,0.114479]
[1735224885598,0.15,95442.0,95441.0,0.10407182]
[1735224886060,0.0001714,95459.0,95441.0,0.12558852]
[1735224886263,0.209516,95458.0,95446.0,0.10398632]
[1735224886413,0.0001714,95459.0,95446.0,0.10398632]
[1735224886624,0.209536,95449.0,95446.0,0.10398632]
[1735224886845,0.209532,95451.0,95446.0,0.10398632]
[1735224887045,0.209532,95451.0,95447.0,0.01255885]
[1735224887311,0.209532,95451.0,95448.0,0.10398632]
[1735224887483,0.15,95454.0,95448.0,0.10398632]
[1735224887635,0.0001714,95459.0,95448.0,0.10398632]
[1735224887844,0.15,95451.0,95448.0,0.10398632]
[1735224888678,0.15,95451.0,95448.0,0.10598632]
[1735224889052,0.209533,95450.0,95448.0,0.10398632]
[1735224889273,0.15,95451.0,95448.0,0.10698632]
[1735224889473,0.15,95455.0,95448.0,0.10698632]
[1735224889671,0.0001714,95459.0,95449.0,0.0117462]
[1735224889877,0.15,95457.0,95450.0,0.10398632]
[1735224891043,0.0001714,95459.0,95450.0,0.10398632]
[1735224891260,0.00015564,95457.0,95450.0,0.10398632]
[1735224891587,0.20967464,95457.0,95450.0,0.10398632]
[1735224891805,0.15,95454.0,95450.0,0.10398632]
[1735224892005,0.15,95454.0,95450.0,0.10698632]
[1735224892204,0.209527,95453.0,95450.0,0.10698632]
[1735224892408,0.15,95454.0,95450.0,0.10698632]
[1735224892606,0.18398856,95452.0,95450.0,0.10698632]
[1735224892829,0.2455116,95453.0,95450.0,0.10698632]
[1735224892830,0.44967489,95451.0,95450.0,0.002]
[1735224893072,0.5119356,95451.0,95450.0,0.007]
[1735224893225,0.209584,95427.0,95424.0,0.09366825]
[1735224893423,0.15,95426.0,95425.0,0.10398632]
[1735224893655,0.15,95426.0,95425.0,0.12462208]
[1735224894432,0.15,95426.0,95425.0,0.12513958]
[1735224895116,0.15,95426.0,95425.0,0.13113958]
[1735224895315,0.15,95426.0,95425.0,0.11050382]
[1735224895515,0.15,95426.0,95425.0,0.10450382]
[1735224895913,0.15,95428.0,95425.0,0.11550382]
[1735224896117,0.15,95430.0,95425.0,0.10850382]
[1735224896337,0.15,95428.0,95425.0,0.10450382]
[1735224896714,0.15,95428.0,95425.0,0.10650382]
[1735224897164,0.15,95428.0,95425.0,0.10450382]
[1735224897371,0.15,95428.0,95425.0,0.10750382]
[1735224897569,0.15,95428.0,95425.0,0.11258932]
[1735224897749,0.15,95426.0,95425.0,0.10758932]
[1735224898091,0.15,95426.0,95425.0,0.11258932]
[1735224898386,0.15,95426.0,95425.0,0.10758932]
[1735224898814,0.17099,95434.0,95425.0,0.10958932]
[1735224898982,0.15,95434.0,95426.0,0.10503411]
[1735224899186,0.20955,95443.0,95427.0,0.00104776]
[1735224899411,0.209534,95450.0,95435.0,0.10398632]
[1735224899746,0.15,95447.0,95435.0,0.10398632]
[1735224900159,0.209542,95446.0,95435.0,0.10398632]
[1735224900365,0.03398856,95453.0,95436.0,0.01039863]
[1735224900567,0.16541489,95457.0,95436.0,0.01039863]
[1735224900568,0.20952,95456.0,95449.0,0.10398632]
[1735224900832,0.209533,95450.0,95449.0,0.10398632]
[1735224901084,0.09014389,95453.0,95425.0,0.002603]
[1735224901325,0.20952,95456.0,95425.0,0.002603]
[1735224901326,0.209542,95446.0,95445.0,0.02063558]
[1735224901569,0.209542,95446.0,95445.0,0.1246219]
[1735224901808,0.359542,95446.0,95445.0,0.1246219]
[1735224902011,0.47064009,95446.0,95445.0,0.02063558]
[1735224902213,0.47064009,95446.0,95427.0,0.09366825]
[1735224902214,0.15,95445.0,95427.0,0.09366825]
[1735224902421,0.209573,95432.0,95428.0,0.10398632]
[1735224902624,0.15,95431.0,95428.0,0.10398632]
[1735224902825,0.15,95429.0,95428.0,0.10398632]
[1735224903790,0.0569144,95429.0,95428.0,0.10398632]
[1735224903964,0.569164,95428.0,95425.0,0.000603]
[1735224904141,0.09014389,95426.0,95425.0,0.000603]
[1735224904353,1.05866889,95426.0,95425.0,0.000603]
[1735224904556,2.13482189,95426.0,95425.0,0.000603]
[1735224904953,2.0006788,95426.0,95425.0,0.000603]
[1735224905153,2.0006788,95426.0,95415.0,8.57e-05]
[1735224905154,0.44975189,95416.0,95415.0,8.57e-05]
[1735224906013,0.71581289,95416.0,95415.0,8.57e-05]
[1735224906235,0.76341289,95416.0,95415.0,8.57e-05]
[1735224906419,0.65808289,95416.0,95415.0,8.57e-05]
[1735224906672,0.66008289,95416.0,95415.0,8.57e-05]
[1735224906889,0.361608,95416.0,95415.0,8.57e-05]
[1735224907098,0.47274189,95416.0,95415.0,8.57e-05]
[1735224907508,0.24189,95416.0,95415.0,0.10407202]
[1735224907724,0.002,95416.0,95415.0,0.20163533]
[1735224907931,0.00051901,95426.0,95415.0,0.20268308]
[1735224908133,0.00051901,95426.0,95425.0,0.10398632]
[1735224908341,0.00051901,95426.0,95425.0,0.10503399]
[1735224908544,0.00051901,95426.0,95425.0,0.23637911]
[1735224908750,0.00051901,95426.0,95425.0,0.25833144]
[1735224909168,0.000171,95457.0,95444.0,0.023]
[1735224909387,0.000171,95457.0,95435.0,0.209566]
[1735224909388,0.000171,95457.0,95456.0,0.23684243]
[1735224909589,0.00032664,95457.0,95456.0,0.23684243]
[1735224909801,0.00032664,95457.0,95456.0,0.85563237]
[1735224910038,0.0463,95518.0,95456.0,0.85563237]
[1735224910039,0.209436,95495.0,95467.0,0.13285611]
[1735224910244,0.209448,95489.0,95467.0,0.12698632]
[1735224910456,0.209474,95477.0,95467.0,0.10398632]
[1735224910663,0.209488,95471.0,95467.0,0.10398632]
[1735224910870,0.418977,95471.0,95467.0,0.10398632]
[1735224911079,0.15,95470.0,95467.0,0.10398632]
[1735224911714,0.15,95470.0,95467.0,0.11298632]
[1735224911991,0.09031529,95469.0,95458.0,0.02142167]
[1735224912199,0.359514,95459.0,95456.0,0.001]
[1735224912407,0.44946189,95457.0,95456.0,0.001]
[1735224912615,0.15,95456.0,95434.0,0.14050237]
[1735224912815,0.15,95447.0,95438.0,0.10398632]
[1735224913014,0.15,95445.0,95438.0,0.10398632]
[1735224913419,0.15,95440.0,95438.0,0.10398632]
[1735224914088,0.08994389,95436.0,95405.0,0.01005611]
[1735224914262,0.209385,95427.0,95413.0,0.10398632]
[1735224915328,0.1498,95434.0,95415.0,0.12698632]
[1735224915528,0.1498,95434.0,95423.0,0.10398632]
[1735224915680,0.006,95427.0,95424.0,0.023]
[1735224915880,0.1498,95434.0,95424.0,0.023]
[1735224916042,0.1498,95434.0,95420.0,0.023]
[1735224916248,0.007,95427.0,95420.0,0.023]
[1735224916475,0.007,95427.0,95426.0,0.12698632]
[1735224916681,0.0068,95427.0,95426.0,0.12698632]
[1735224917124,0.0068,95427.0,95426.0,0.12803401]
[1735224917551,0.0068,95427.0,95426.0,0.25872925]
[1735224917754,0.0068,95427.0,95426.0,0.46726756]
[1735224917964,0.001,95434.0,95433.0,0.11005611]
[1735224918161,0.001,95434.0,95433.0,0.23808984]
[1735224918393,0.001,95434.0,95433.0,0.23704243]
[1735224918585,0.209512,95460.0,95439.0,0.11005611]
[1735224918829,0.209512,95460.0,95448.0,0.10398632]
[1735224919614,0.15,95459.0,95448.0,0.10398632]
[1735224920030,0.15,95459.0,95448.0,0.10598632]
[1735224920232,0.15,95471.0,95450.0,0.10398632]
[1735224920436,0.209475,95477.0,95457.0,0.10398632]
[1735224920635,0.0465,95495.0,95448.0,0.01259863]
[1735224920636,0.0465,95495.0,95467.0,0.12698632]
[1735224920839,0.209479,95475.0,95467.0,0.10398632]
[1735224921037,0.209491,95470.0,95467.0,0.10398632]
[1735224921746,0.209463,95482.0,95467.0,0.10398632]
[1735224921873,0.15,95481.0,95467.0,0.10398632]
[1735224922077,0.15,95475.0,95467.0,0.10398632]
[1735224922305,0.15,95475.0,95467.0,0.10598632]
[1735224922506,0.15,95475.0,95467.0,0.10398632]
[1735224922715,0.15,95475.0,95467.0,0.10498632]
[1735224922929,0.209489,95471.0,95467.0,0.10998632]
[1735224923155,0.15,95470.0,95467.0,0.10898632]
[1735224923512,0.15,95470.0,95467.0,0.11198632]
[1735224924257,0.15,95475.0,95467.0,0.10698632]
[1735224924400,0.15,95475.0,95467.0,0.11098632]
[1735224924599,0.15,95470.0,95467.0,0.11098632]
[1735224925025,0.15,95470.0,95467.0,0.11498632]
[1735224925220,0.15,95470.0,95467.0,0.10798632]
[1735224925650,0.15,95470.0,95467.0,0.11498632]
[1735224925821,0.15,95470.0,95467.0,0.10698632]
[1735224926227,0.15,95470.0,95467.0,0.10398632]
[1735224926448,0.15,95470.0,95467.0,0.10698632]
[1735224926888,0.209488,95471.0,95454.0,0.0205803]
[1735224926889,0.209522,95455.0,95454.0,0.0205803]
[1735224927049,0.08994389,95444.0,95440.0,0.10398632]
[1735224927253,0.359553,95441.0,95440.0,0.10398632]
[1735224927453,0.39028291,95441.0,95440.0,0.10398632]
[1735224928116,0.359553,95441.0,95440.0,0.10398632]
[1735224928535,0.15,95448.0,95440.0,0.10398632]